fUST/lending_fUST_20251230
["ID","MTS","AMOUNT","RATE_DAILY","PERIOD"]
[400079874,1767073854175,-9961.44,0.000307,2]
[400079875,1767073854185,-160.0,0.00030709,3]
[400079876,1767073854194,-628.04942881,0.00030921,2]
[400079877,1767073854204,-1391.47,0.00030958,30]
[400079878,1767073854213,-4809.0,0.00030974,30]
[400079879,1767073854226,-305.77525825,0.0003099,2]
[400079880,1767073854239,-259.27277798,0.00031,120]
[400079881,1767073854248,-303.7187627,0.00031,120]
[400079882,1767073854257,-283.66828619,0.00031,120]
[400079883,1767073854267,-319.17394761,0.00031,120]
[400079884,1767073854276,-201.19436054,0.00031,120]
[400079885,1767073854285,-180.65011172,0.00031,120]
[400079886,1767073854295,-197.73888443,0.00031,120]
[400079887,1767073854304,-167.28493125,0.00031,120]
[400079888,1767073854313,-312.49655877,0.00031,120]
[400079889,1767073854325,-275.17754487,0.00031,120]
[400079890,1767073854335,-173.91029314,0.00031,120]
[400079891,1767073854344,-234.75680663,0.00031,120]
[400079892,1767073854354,-180.34309153,0.00031,120]
[400079893,1767073854363,-157.0,0.00031,30]
[400079894,1767073854372,-18282.0,0.00031,120]
[400079895,1767073854382,-1388.90813834,0.00031,120]
[400079896,1767073854391,-28633.4661558,0.00031,120]
[400079897,1767073854401,-1356.72940716,0.00031,120]
[400079898,1767073854410,-2554.1920992,0.00031,5]
[400079899,1767073854419,-160.96956782,0.00031,120]
[400079900,1767073854429,-5000.0,0.00031005,2]
[400079901,1767073854439,-514.84070869,0.00031105,2]
[400079902,1767073854448,-2487.15318209,0.00031105,2]
[400079903,1767073854458,-13931.54620908,0.0003112,2]
[400079904,1767073854467,-700.0,0.00031123,7]
[400079905,1767073854477,-2000.0,0.00031137,7]
[400079906,1767073854486,-1000.0,0.00031193,30]
[400079907,1767073854496,-1000.0,0.00031193,30]
[400079908,1767073854505,-889.0,0.00031193,30]
[400079909,1767073854515,-1329.22,0.0003122,30]
[400079910,1767073854525,-915.55215583,0.00031233,5]
[400079911,1767073854534,-5527.46456255,0.00031236,2]
[400079912,1767073854543,-700.0,0.0003125,7]
[400079913,1767073854552,-1289.80445337,0.00031272,2]
[400079914,1767073854562,-919.98846308,0.00031272,2]
[400079915,1767073854571,-160.0,0.00031289,4]
[400079916,1767073854581,-165.26,0.000313,2]
[400079917,1767073854590,-256.5,0.00031304,30]
[400079918,1767073854601,-1391.47,0.00031506,31]
[400079919,1767073854610,-188.0,0.00031644,14]
[400079920,1767073854619,-533.88981491,0.00031653,2]
[400079921,1767073854629,-2579.17784983,0.00031653,2]
[400079922,1767073854639,-404.0,0.00031654,4]
[400079923,1767073854648,-500.0,0.00031667,7]
[400079924,1767073854657,-567.81,0.000317,7]
[400079925,1767073854667,-15279.06072301,0.00031796,2]
[400079926,1767073854677,-430.3730601,0.00031863,30]
[400079927,1767073854686,-376.3220282,0.00031863,30]
[400079928,1767073854696,-376.3220282,0.00031863,30]
[400079929,1767073854705,-376.3220282,0.00031863,30]
[400079930,1767073854715,-160.0,0.00031869,5]
[400079931,1767073854724,-259.27277798,0.000319,120]
[400079932,1767073854734,-303.7187627,0.000319,120]
[400079933,1767073854743,-283.66828619,0.000319,120]
[400079934,1767073854752,-319.17394761,0.000319,120]
[400079935,1767073854762,-180.65011172,0.000319,120]
[400079936,1767073854771,-197.73888443,0.000319,120]
[400079937,1767073854781,-167.28493125,0.000319,120]
[400079938,1767073854790,-312.49655877,0.000319,120]
[400079939,1767073854800,-275.17754487,0.000319,120]
[400079940,1767073854809,-234.75680663,0.000319,120]
[400079941,1767073854819,-180.34309153,0.000319,120]
[400079942,1767073854828,-1388.90813834,0.000319,120]
[400079943,1767073854838,-11247.79533795,0.000319,2]
[400079944,1767073854848,-500.0,0.00031907,7]
[400079945,1767073854857,-200.51904304,0.00032,2]
[400079946,1767073854867,-200.0,0.00032,120]
[400079947,1767073854876,-700.0,0.00032045,7]
[400079948,1767073854889,-1391.47,0.00032054,32]
[400079949,1767073854902,-1409.93,0.000321,14]
[400079950,1767073854912,-9961.44,0.000321,2]
[400079951,1767073854922,-500.0,0.0003216,2]
[400079952,1767073854931,-553.64373807,0.00032201,2]
[400079953,1767073854941,-2674.60743027,0.00032201,2]
[400079954,1767073854951,-1495.37,0.00032335,30]
[400079955,1767073854960,-900.0,0.00032397,7]
[400079956,1767073854970,-166.34,0.000324,7]
[400079957,1767073854980,-2000.0,0.000324,120]
[400079958,1767073854989,-2000.0,0.00032403,7]
[400079959,1767073854998,-160.0,0.00032449,6]
[400079960,1767073855008,-1391.47,0.00032602,33]
[400079961,1767073855016,-674.459,0.00032683,2]
[400079962,1767073855026,-2219.236,0.00032683,2]
[400079963,1767073855035,-1374.592,0.00032683,2]
[400079964,1767073855045,-219.971,0.00032683,2]
[400079965,1767073855054,-240.418,0.00032683,2]
[400079966,1767073855063,-250.0,0.00032683,2]
[400079967,1767073855072,-619.2906169,0.00032685,30]
[400079968,1767073855081,-315.247839,0.00032685,30]
[400079969,1767073855091,-303.3898112,0.00032685,30]
[400079970,1767073855100,-303.3898112,0.00032685,30]
[400079971,1767073855109,-303.3898112,0.00032685,30]
[400079972,1767073855119,-574.12855637,0.00032749,2]
[400079973,1767073855128,-965.70893362,0.00032876,120]
[400079974,1767073855138,-575.02,0.00032876,2]
[400079975,1767073855148,-575.02,0.00032876,2]
[400079976,1767073855158,-575.02,0.00032876,2]
[400079977,1767073855167,-575.02,0.00032876,2]
[400079978,1767073855176,-575.02,0.00032876,2]
[400079979,1767073855185,-575.02,0.00032876,2]
[400079980,1767073855195,-575.02,0.00032876,2]
[400079981,1767073855204,-575.02,0.00032876,2]
[400079982,1767073855214,-575.02,0.00032876,2]
[400079983,1767073855223,-575.02,0.00032876,2]
[400079984,1767073855232,-575.02,0.00032876,2]
[400079985,1767073855242,-575.02,0.00032876,2]
[400079986,1767073855253,-575.02,0.00032876,2]
[400079987,1767073855262,-575.02,0.00032876,2]
[400079988,1767073855272,-575.02,0.00032876,2]
[400079989,1767073855282,-575.02,0.00032876,2]
[400079990,1767073855291,-575.02,0.00032876,2]
[400079991,1767073855301,-575.02,0.00032876,2]
[400079992,1767073855311,-575.02,0.00032876,2]
[400079993,1767073855321,-575.02,0.00032876,2]
[400079994,1767073855335,-575.02,0.00032876,2]
[400079995,1767073855344,-575.02,0.00032876,2]
[400079996,1767073855354,-575.02,0.00032876,2]
[400079997,1767073855363,-575.2218476,0.00032876,2]
[400079998,1767073855374,-233.58774294,0.00032876,2]
[400079999,1767073855384,-200.0,0.00032877,20]
[400080000,1767073855393,-998.57,0.00032877,10]
[400080001,1767073855406,-500.0,0.00032877,5]
[400080002,1767073855415,-889.82912269,0.00032879,120]
[400080003,1767073855425,-259.27277798,0.000329,120]
[400080004,1767073855434,-303.7187627,0.000329,120]
[400080005,1767073855444,-283.66828619,0.000329,120]
[400080006,1767073855453,-319.17394761,0.000329,120]
[400080007,1767073855462,-197.73888443,0.000329,120]
[400080008,1767073855471,-312.49655877,0.000329,120]
[400080009,1767073855480,-275.17754487,0.000329,120]
[400080010,1767073855490,-180.34309153,0.000329,120]
[400080011,1767073855500,-1388.90813834,0.000329,120]
[400080012,1767073855570,-671.19786285,0.00032921,120]
[400080013,1767073855584,-157.0,0.00033,120]
[400080014,1767073855593,-85000.0,0.00033,120]
[400080015,1767073855603,-1041.66666667,0.00033,120]
[400080016,1767073855612,-1020.0,0.00033,7]
[400080017,1767073855621,-204.93982025,0.00033,2]
[400080018,1767073855630,-160.0,0.00033029,7]
[400080019,1767073855639,-165.26,0.000331,2]
[400080020,1767073855648,-1391.47,0.0003315,34]
[400080021,1767073855658,-404.0,0.00033163,5]
[400080022,1767073855668,-721.386967,0.00033165,2]
[400080023,1767073855677,-225.2411399,0.000332,117]
[400080024,1767073855687,-15279.06072301,0.00033215,2]
[400080025,1767073855696,-1241.1395,0.0003322,30]
[400080026,1767073855705,-191.0,0.00033226,30]
[400080027,1767073855715,-544.88025884,0.00033297,2]
[400080028,1767073855724,-665.73786629,0.00033385,2]
[400080029,1767073855734,-567.81,0.000334,7]
[400080030,1767073855744,-1000.0,0.00033425,5]
[400080031,1767073855754,-1661.51818745,0.0003345,30]
[400080032,1767073855763,-160.0,0.00033479,61]
[400080033,1767073855772,-193.282872,0.00033499,30]
[400080034,1767073855782,-193.282872,0.00033499,30]
[400080035,1767073855791,-193.282872,0.00033499,30]
[400080036,1767073855801,-193.282872,0.00033499,30]
[400080037,1767073855811,-193.282872,0.00033499,30]
[400080038,1767073855820,-5153.64504754,0.00033572,2]
[400080039,1767073855829,-160.0,0.00033609,8]
[400080040,1767073855839,-500.0,0.0003365,10]
[400080041,1767073855848,-500.0,0.0003365,10]
[400080042,1767073855857,-500.0,0.0003365,10]
[400080043,1767073855866,-500.0,0.0003365,10]
[400080044,1767073855876,-500.0,0.0003365,30]
[400080045,1767073855886,-500.0,0.0003365,10]
[400080046,1767073855895,-2000.0,0.00033669,7]
[400080047,1767073855905,-1391.47,0.00033698,35]
[400080048,1767073855915,-250.0,0.00033699,5]
[400080049,1767073855925,-12725.54,0.000337,10]
[400080050,1767073855935,-252178.67964869,0.00033898,2]
[400080051,1767073855945,-259.27277798,0.000339,120]
[400080052,1767073855954,-303.7187627,0.000339,120]
[400080053,1767073855963,-283.66828619,0.000339,120]
[400080054,1767073855972,-319.17394761,0.000339,120]
[400080055,1767073855982,-197.73888443,0.000339,120]
[400080056,1767073855991,-312.49655877,0.000339,120]
[400080057,1767073856001,-275.17754487,0.000339,120]
[400080058,1767073856010,-1388.90813834,0.000339,120]
[400080059,1767073856019,-1500.0,0.00033973,5]
[400080060,1767073856029,-158.0,0.00034,120]
[400080061,1767073856038,-1041.66666667,0.00034,120]
[400080062,1767073856047,-1032.28132267,0.00034,2]
[400080063,1767073856057,-50000.0,0.00034,14]
[400080064,1767073856067,-163.05,0.00034,7]
[400080065,1767073856077,-1409.93,0.00034,30]
[400080066,1767073856087,-9961.44,0.00034,14]
[400080067,1767073856096,-200.0,0.00034,120]
[400080068,1767073856106,-184.1347424,0.00034,30]
[400080069,1767073856116,-184.1347424,0.00034,30]
[400080070,1767073856125,-184.1347424,0.00034,30]
[400080071,1767073856135,-184.1347424,0.00034,30]
[400080072,1767073856144,-184.1347424,0.00034,30]
[400080073,1767073856153,-184.1347424,0.00034,30]
[400080074,1767073856163,-184.1347424,0.00034,30]
[400080075,1767073856172,-184.1347424,0.00034,30]
[400080076,1767073856182,-184.1347424,0.00034,30]
[400080077,1767073856191,-184.1347424,0.00034,30]
[400080078,1767073856201,-184.1347424,0.00034,30]
[400080079,1767073856211,-1016.0,0.00034,7]
[400080080,1767073856220,-160.0,0.00034189,9]
[400080081,1767073856229,-1391.47,0.00034246,36]
[400080082,1767073856238,-197.6540437,0.00034321,30]
[400080083,1767073856248,-193.282872,0.00034321,30]
[400080084,1767073856257,-193.282872,0.00034321,30]
[400080085,1767073856267,-193.282872,0.00034321,30]
[400080086,1767073856276,-193.282872,0.00034321,30]
[400080087,1767073856286,-193.282872,0.00034321,30]
[400080088,1767073856295,-193.282872,0.00034321,30]
[400080089,1767073856304,-193.282872,0.00034321,30]
[400080090,1767073856314,-193.282872,0.00034321,30]
[400080091,1767073856323,-193.282872,0.00034321,30]
[400080092,1767073856335,-193.282872,0.00034321,30]
[400080093,1767073856345,-193.282872,0.00034321,30]
[400080094,1767073856354,-193.282872,0.00034321,30]
[400080095,1767073856364,-193.282872,0.00034321,30]
[400080096,1767073856373,-193.282872,0.00034321,30]
[400080097,1767073856382,-193.282872,0.00034321,30]
[400080098,1767073856391,-193.282872,0.00034321,30]
[400080099,1767073856401,-164.1923622,0.00034321,30]
[400080100,1767073856410,-184.1347424,0.00034329,30]
[400080101,1767073856420,-184.1347424,0.00034329,30]
[400080102,1767073856429,-184.1347424,0.00034329,30]
[400080103,1767073856439,-184.1347424,0.00034329,30]
[400080104,1767073856449,-184.1347424,0.00034329,30]
[400080105,1767073856459,-184.1347424,0.00034329,30]
[400080106,1767073856468,-184.1347424,0.00034329,30]
[400080107,1767073856478,-184.1347424,0.00034329,30]
[400080108,1767073856487,-184.1347424,0.00034329,30]
[400080109,1767073856496,-184.1347424,0.00034329,30]
[400080110,1767073856506,-184.1347424,0.00034329,30]
[400080111,1767073856515,-184.1347424,0.00034329,30]
[400080112,1767073856525,-21201.1084,0.0003444,30]
[400080113,1767073856534,-737.43404646,0.00034521,5]
[400080114,1767073856543,-350.0,0.00034521,5]
[400080115,1767073856553,-15279.06072301,0.00034634,2]
[400080116,1767073856562,-4809.0,0.0003465,30]
[400080117,1767073856571,-166.0,0.0003465,7]
[400080118,1767073856580,-166.0,0.0003465,7]
[400080119,1767073856590,-166.0,0.0003465,7]
[400080120,1767073856599,-166.0,0.0003465,7]
[400080121,1767073856609,-163.0,0.0003465,7]
[400080122,1767073856619,-172.0,0.0003465,7]
[400080123,1767073856628,-184.98755332,0.0003465,7]
[400080124,1767073856637,-152.0,0.0003465,7]
[400080125,1767073856647,-152.0,0.0003465,7]
[400080126,1767073856657,-152.0,0.0003465,7]
[400080127,1767073856666,-152.93364206,0.0003465,7]
[400080128,1767073856676,-408.75368194,0.0003465,7]
[400080129,1767073856685,-668.1691043,0.0003465,7]
[400080130,1767073856695,-2670.00374078,0.0003465,7]
[400080131,1767073856704,-1002930.58743688,0.0003465,4]
[400080132,1767073857033,-138.59213866,0.0003465,4]
[400080133,1767073857046,-4260.5283751,0.0003465,4]
[400080134,1767073857058,-302.0,0.0003465,4]
[400080135,1767073857313,-3e-08,0.000129,2]
[400080136,1767073857326,-467.91884204,0.000129,2]
[400080137,1767073982800,10000.01,0.00012771,2]
[400080138,1767073982827,10000.01,0.00012771,2]
[400080139,1767073982853,10000.01,0.00012771,2]
[400080140,1767073982880,10000.01,0.00012771,2]
[400080141,1767073982905,10000.01,0.00012771,2]
[400080142,1767073982930,10000.01,0.00012771,2]
[400080143,1767073982955,10000.01,0.00012771,2]
[400080144,1767073982979,10000.01,0.00012771,2]
[400080145,1767073983006,10000.01,0.00012771,2]
[400080146,1767073983032,10000.01,0.00012771,2]
[400080147,1767074042695,300.0,0.0001277,2]
[400080148,1767074071665,376.34876296,0.0001277,2]
[400080149,1767074071700,500.0,0.0001277,2]
[400080150,1767074071918,500.0,0.0001277,2]
[400080151,1767074072040,580.19506406,0.0001277,2]
[400080152,1767074130859,382.75,0.00012228,2]
[400080153,1767074162714,300.0,0.0001277,2]
[400080154,1767074210888,377.88,0.00012235,2]
[400080155,1767074222688,300.0,0.0001277,2]
[400080157,1767074282717,300.0,0.0001277,2]
[400080158,1767074291291,373.07,0.00012235,2]
[400080159,1767074342933,300.0,0.0001277,2]
[400080160,1767074370412,368.32,0.00012228,2]
[400080161,1767074391339,429.52122124,0.0001271,2]
[400080162,1767074402700,300.0,0.0001277,2]
[400080163,1767074418386,4613.3837431,0.00012007,2]
[400080164,1767074450339,363.64,0.00012286,2]
[400080165,1767074462410,300.0,0.0001277,2]
[400080167,1767074523069,300.0,0.0001277,2]
[400080168,1767074530132,359.01,0.00012322,2]
[400080169,1767074582898,300.0,0.0001277,2]
[400080170,1767074609934,354.44,0.00012327,2]
[400080171,1767074642520,300.0,0.0001277,2]
[400080172,1767074689458,349.93,0.00012324,2]
[400080173,1767074702225,300.0,0.0001277,2]
[400080174,1767074731611,343.616977,0.00012671,2]
[400080175,1767074754578,-200.0,0.00013,14]
[400080176,1767074756515,-21.54,0.00013,14]
[400080177,1767074762450,300.0,0.0001277,2]
[400080178,1767074768811,345.47,0.00012253,2]
[400080191,1767074848465,341.08,0.00012265,2]
[400080193,1767074884001,31.59805866,0.00012051,2]
[400080194,1767074884024,10000.01,0.00012051,2]
[400080195,1767074884046,10000.01,0.00012051,2]
[400080196,1767074884069,10000.01,0.00012051,2]
[400080197,1767074884091,5021.49778304,0.00012051,2]
[400080198,1767074891257,1364.35,0.00012329,2]
[400080199,1767074898530,471.57039871,0.00012771,2]
[400080200,1767074901718,1136.96,0.00012329,2]
[400080201,1767074906565,2005.63181825,0.00012771,2]
[400080202,1767074906596,2994.36818175,0.00012771,2]
[400080203,1767074906865,174.4590058,0.0001277,2]
[400080204,1767074912031,1608.86,0.00012329,2]
[400080205,1767074922544,1340.72,0.00012329,2]
[400080206,1767074927590,336.74,0.00012251,2]
[400080207,1767074930191,3544.86281245,0.00012771,2]
[400080208,1767074930216,1455.13718755,0.00012771,2]
[400080209,1767074932940,1625.34,0.00012329,2]
[400080210,1767074939998,-5653.92119763,0.00012771,2]
[400080211,1767074940099,-10000.01,0.00012771,2]
[400080212,1767074940326,-10000.01,0.00012771,2]
[400080213,1767074942293,-10000.01,0.00012771,2]
[400080214,1767074942432,-10000.01,0.00012771,2]
[400080215,1767074942549,-10000.01,0.00012771,2]
[400080216,1767074942824,-10000.01,0.00012771,2]
[400080217,1767074942884,-300.0,0.0001277,2]
[400080218,1767074942921,-9400.01,0.00012771,2]
[400080219,1767074942973,-10000.01,0.00012771,2]
[400080220,1767074943088,-10000.01,0.00012771,2]
[400080221,1767074948463,-1760.46,0.00012329,2]
[400080222,1767074948493,-1479.09,0.00012643,2]
[400080223,1767074948538,-3520.91,0.00012643,2]
[400080224,1767074948704,-10000.01,0.00012771,2]
[400080225,1767074953985,1504.88,0.00012329,2]
[400080226,1767074962316,500.0,0.0001277,2]
[400080227,1767074962366,500.0,0.0001277,2]
[400080228,1767074962395,532.54396148,0.0001277,2]
[400080229,1767074962425,500.0,0.0001277,2]
[400080230,1767074962472,449.61394606,0.0001277,2]
[400080231,1767074964398,1254.07,0.00012329,2]
[400080232,1767074968772,2542.72668935,0.00012771,2]
[400080233,1767074974800,1045.06,0.00012329,2]
[400080234,1767074985202,870.88,0.00012329,2]
[400080235,1767074991812,300.23540311,0.00012771,2]
[400080236,1767074991833,1450.82515615,0.00012771,2]
[400080237,1767074994465,8549.18484385,0.00012671,2]
[400080238,1767074994605,10000.01,0.00012671,2]
[400080239,1767074994633,10000.01,0.00012671,2]
[400080240,1767074994663,10000.01,0.00012671,2]
[400080241,1767074994688,10000.01,0.00012671,2]
[400080242,1767074994715,10000.01,0.00012671,2]
[400080243,1767074994741,10000.01,0.00012671,2]
[400080244,1767074994767,10000.01,0.00012671,2]
[400080245,1767074994792,10000.01,0.00012671,2]
[400080246,1767074996822,-600.01254821,0.00012329,2]
[400080247,1767075000317,2987.52668162,0.00012281,2]
[400080248,1767075006359,-125.71745179,0.00012329,2]
[400080249,1767075006388,-752.44,0.00012329,2]
[400080250,1767075006418,-594.0,0.00012329,2]
[400080251,1767075006450,-300.0,0.0001267,2]
[400080252,1767075006611,398.31,0.00012246,2]
[400080253,1767075016109,4953.4465289,0.00012671,2]
[400080254,1767075016961,627.04,0.00012329,2]
[400080255,1767075023836,476.89856752,0.00012671,2]
[400080256,1767075023860,4523.10143248,0.00012671,2]
[400080257,1767075027619,522.53,0.00012329,2]
[400080273,1767075031506,-396.97647521,0.00012671,2]
[400080280,1767075031563,-458.23756058,0.00012671,2]
[400080282,1767075031574,-837.1134453,0.00012671,2]
[400080345,1767075037645,-2034.6234051,0.00012671,2]
[400080346,1767075037704,-135202.65954694,0.00012671,2]
[400080347,1767075037713,-244.38322615,0.00012721,2]
[400080348,1767075037722,-796.63,0.00012829,2]
[400080349,1767075037733,-668.39868111,0.000129,2]
[400080350,1767075037742,-500.0,0.00012999,2]
[400080351,1767075037751,-500.0,0.00012999,2]
[400080352,1767075037760,-7610.47702556,0.00013025,2]
[400080353,1767075037769,-300.0,0.00013025,2]
[400080354,1767075037778,-300.0,0.00013025,2]
[400080355,1767075037787,-300.0,0.00013025,2]
[400080356,1767075037796,-300.0,0.00013025,2]
[400080357,1767075037805,-300.0,0.00013025,2]
[400080358,1767075037814,-300.0,0.00013025,2]
[400080359,1767075037823,-300.0,0.00013025,2]
[400080360,1767075037832,-300.0,0.00013025,2]
[400080361,1767075037842,-300.0,0.00013025,2]
[400080362,1767075037851,-300.0,0.00013025,2]
[400080363,1767075037860,-300.0,0.00013025,2]
[400080364,1767075037869,-300.0,0.00013025,2]
[400080365,1767075037879,-300.0,0.00013025,2]
[400080366,1767075037888,-300.0,0.00013025,2]
[400080367,1767075037897,-300.0,0.00013025,2]
[400080368,1767075037906,-600.0,0.00013025,2]
[400080369,1767075037915,-500.0,0.00013136,2]
[400080370,1767075037925,-500.0,0.00013136,2]
[400080371,1767075037934,-283.15409111,0.00013273,2]
[400080372,1767075037943,-500.0,0.00013273,2]
[400080373,1767075037953,-217.77534712,0.00013273,2]
[400080374,1767075037962,-165.40870093,0.00013273,2]
[400080375,1767075037971,-500.0,0.00013273,2]
[400080376,1767075037981,-500.15325233,0.00013273,2]
[400080377,1767075037990,-500.0,0.00013273,2]
[400080378,1767075038000,-500.0,0.00013273,2]
[400080379,1767075038009,-500.0,0.00013273,2]
[400080380,1767075038019,-500.0,0.00013273,2]
[400080381,1767075038029,-500.0,0.00013273,2]
[400080382,1767075038039,-500.0,0.00013273,2]
[400080383,1767075038048,-500.0,0.00013273,2]
[400080384,1767075038058,-500.0,0.00013273,2]
[400080385,1767075038068,-500.0,0.00013273,2]
[400080386,1767075038078,-500.0,0.00013273,2]
[400080387,1767075038088,-500.0,0.00013273,2]
[400080388,1767075038097,-500.0,0.00013273,2]
[400080389,1767075038107,-500.0,0.00013273,2]
[400080390,1767075038116,-500.0,0.00013273,2]
[400080391,1767075038126,-500.0,0.00013273,2]
[400080392,1767075038136,-500.0,0.00013273,2]
[400080393,1767075038146,-500.0,0.00013273,2]
[400080394,1767075038155,-605.28720895,0.00013273,2]
[400080395,1767075038165,-500.0,0.00013273,2]
[400080396,1767075038175,-500.0,0.00013273,2]
[400080397,1767075038184,-500.0,0.00013273,2]
[400080398,1767075038194,-500.0,0.00013273,2]
[400080399,1767075038203,-500.26362116,0.00013273,2]
[400080400,1767075038213,-158.36952314,0.00013273,2]
[400080401,1767075038223,-465.37686128,0.00013273,2]
[400080402,1767075038234,-500.0,0.00013273,2]
[400080403,1767075038243,-500.0,0.00013273,2]
[400080404,1767075038253,-500.0,0.00013273,2]
[400080405,1767075038263,-500.0,0.00013273,2]
[400080406,1767075038273,-500.0,0.00013273,2]
[400080407,1767075038283,-500.0,0.00013273,2]
[400080408,1767075038293,-500.0,0.00013273,2]
[400080409,1767075038303,-500.0,0.00013273,2]
[400080410,1767075038312,-500.0,0.00013273,2]
[400080411,1767075038322,-500.0,0.00013273,2]
[400080412,1767075038331,-500.0,0.00013273,2]
[400080413,1767075038341,-500.0,0.00013273,2]
[400080414,1767075038350,-500.0,0.00013273,2]
[400080415,1767075038359,-535.90784509,0.00013273,2]
[400080416,1767075038368,-210.52500245,0.00013273,2]
[400080417,1767075038377,-500.41782704,0.00013273,2]
[400080418,1767075038387,-500.0,0.00013273,2]
[400080419,1767075038397,-500.0,0.00013273,2]
[400080420,1767075038407,-171.46724049,0.00013273,2]
[400080421,1767075038416,-500.0,0.00013273,2]
[400080422,1767075038426,-270.09084155,0.00013273,2]
[400080423,1767075038435,-500.0,0.00013273,2]
[400080424,1767075038445,-500.0,0.00013273,2]
[400080425,1767075038455,-500.0,0.00013273,2]
[400080426,1767075038465,-185.30799155,0.00013273,2]
[400080427,1767075038475,-500.0,0.00013273,2]
[400080428,1767075038485,-500.0,0.00013273,2]
[400080429,1767075038494,-500.0,0.00013273,2]
[400080430,1767075038504,-500.0,0.00013273,2]
[400080431,1767075038513,-500.0,0.00013273,2]
[400080432,1767075038523,-500.0,0.00013273,2]
[400080433,1767075038532,-500.0,0.00013273,2]
[400080434,1767075038541,-500.0,0.00013273,2]
[400080435,1767075038550,-500.0,0.00013273,2]
[400080436,1767075038559,-159.20798876,0.00013273,2]
[400080437,1767075038569,-268.5150951,0.00013273,2]
[400080438,1767075038578,-500.0,0.00013273,2]
[400080439,1767075038587,-500.0,0.00013273,2]
[400080440,1767075038596,-169.22126826,0.00013273,2]
[400080441,1767075038606,-500.0,0.00013273,2]
[400080442,1767075038615,-500.0,0.00013273,2]
[400080443,1767075038624,-153.88514916,0.00013273,2]
[400080444,1767075038634,-500.0,0.0001341,2]
[400080445,1767075038643,-500.0,0.0001341,2]
[400080446,1767075038652,-159.63944667,0.0001341,2]
[400080447,1767075038663,-1194.94,0.00013412,2]
[400080448,1767075038673,-10000.0,0.0001354,2]
[400080449,1767075038683,-500.0,0.00013547,2]
[400080450,1767075038692,-165.69776986,0.00013547,2]
[400080451,1767075038703,-500.0,0.00013547,2]
[400080452,1767075038712,-500.0,0.00013547,2]
[400080453,1767075038721,-300.0,0.00013673,2]
[400080454,1767075038731,-500.0,0.00013684,2]
[400080455,1767075038742,-500.0,0.00013684,2]
[400080456,1767075038751,-528.98647481,0.00013698,2]
[400080457,1767075038761,-528.29778119,0.00013698,2]
[400080458,1767075038770,-507.52539763,0.00013698,2]
[400080459,1767075038779,-175.88826675,0.00013698,2]
[400080460,1767075038788,-569.18570614,0.00013698,2]
[400080461,1767075038797,-308.96684295,0.00013698,2]
[400080462,1767075038806,-500.0,0.00013698,2]
[400080463,1767075038815,-500.0,0.00013698,2]
[400080464,1767075038824,-500.0,0.00013698,2]
[400080465,1767075038833,-500.0,0.00013698,2]
[400080466,1767075038843,-526.58347219,0.00013698,2]
[400080467,1767075038853,-500.0,0.00013698,2]
[400080468,1767075038862,-500.0,0.00013698,2]
[400080469,1767075038872,-500.0,0.00013698,2]
[400080470,1767075038881,-501.25655426,0.00013698,2]
[400080471,1767075038891,-258.209554,0.00013699,2]
[400080472,1767075038900,-164.39071824,0.00013699,2]